[Event "ESP-ch Seniors 2017"]
[Site "Altea"]
[Date "2017.10.12"]
[Round "6"]
[White "Celaya Tapiz, Jose Maria"]
[Black "Sarto Ramos, Angel"]
[Result "1/2-1/2"]
[ECO "C00"]
[WhiteElo "2196"]
[BlackElo "1909"]
[Annotator "NA"]
[PlyCount "40"]
[EventDate "2017.??.??"]
[EventType "swiss"]
[EventCountry "ESP"]
[SourceTitle "playchess.com"]
[Source "ChessBase"]
[SourceQuality "1"]
[TimeControl "5400+30"]

1. e4 {[%emt 0:00:00]} e6 {[%emt 0:00:21]} 2. Nf3 {[%emt 0:01:23]} d5 {[%emt 0:00:19]} 3. exd5 {[%emt 0:01:27]} exd5 {[%emt 0:00:15]} 4. d4 {[%emt 0:00:13]} Bd6 {[%emt 0:04:52]} 5. h3 {[%emt 0:00:19]} Ne7 {[%emt 0:01:51]} 6. Bd3 {[%emt 0:00:14]} Ng6 {[%emt 0:04:14]} 7. Qe2+ {[%emt 0:02:40]} Qe7 {[%emt 0:01:17]} 8. Qxe7+ {[%emt 0:00:13]} Kxe7 {[%emt 0:01:06]} 9. g3 {[%emt 0:01:22]} Re8 {[%emt 0:00:25]} 10. Be3 {[%emt 0:00:06]} Kf8 {[%emt 0:01:22]} 11. Nc3 {[%emt 0:00:44]} c6 {[%emt 0:00:31]} 12. O-O-O {[%emt 0:00:42]} Nd7 {[%emt 0:01:10]} 13. a3 {[%emt 0:00:28]} Bxg3 {[%emt 0:05:40]} 14. Rde1 {[%emt 0:01:06]} Bf4 {[%emt 0:05:13]} 15. Bxg6 {[%emt 0:00:16]} Bxe3+ {[%emt 0:00:46]} 16. fxe3 {[%emt 0:00:03]} hxg6 {[%emt 0:00:49]} 17. e4 {[%emt 0:00:11]} dxe4 {[%emt 0:01:16]} 18. Nxe4 {[%emt 0:00:35]} Nf6 {[%emt 0:09:31]} 19. Neg5 {[%emt 0:01:07]} Rxe1+ {[%emt 0:07:57]} 20. Rxe1 {[%emt 0:00:26]} Bf5 {[%emt 0:02:32]} 1/2-1/2

[Event "ESP-ch Seniors 2017"]
[Site "Altea"]
[Date "2017.10.12"]
[Round "6"]
[White "Cantero Navarro, Antonio"]
[Black "Roche Simon, Manuel Angel"]
[Result "1/2-1/2"]
[ECO "C09"]
[WhiteElo "2153"]
[BlackElo "2216"]
[Annotator "ChessBase"]
[PlyCount "169"]
[EventDate "2017.??.??"]
[EventType "swiss"]
[EventCountry "ESP"]
[SourceTitle "playchess.com"]
[Source "ChessBase"]
[SourceQuality "1"]
[TimeControl "5400+30"]

1. e4 {[%emt 0:00:00]} e6 {[%emt 0:00:10]} 2. d4 d5 {[%emt 0:00:06]} 3. Nd2 {[%emt 0:00:00]} c5 {[%emt 0:00:07]} 4. Ngf3 Nc6 5. exd5 {[%emt 0:07:20]} exd5 {[%emt 0:01:32]} 6. Bb5 {[%emt 0:00:06]} Bd6 {[%emt 0:01:07]} 7. dxc5 {[%emt 0:01:33]} Bxc5 {[%emt 0:00:00]} 8. O-O {[%emt 0:10:17]} Nge7 {[%emt 0:02:03]} 9. Nb3 {[%emt 0:08:55]} Bb6 {[%emt 0:00:21]} 10. Re1 {[%emt 0:00:07]} O-O {[%emt 0:14:23]} 11. Be3 {[%emt 0:05:30]} Bf5 {[%emt 0:02:46]} 12. c3 {[%emt 0:07:14]} Re8 {[%emt 0:05:47]} 13. Qd2 {[%emt 0:04:53]} Be4 {[%emt 0:06:10]} 14. Nfd4 {[%emt 0:01:00]} Rc8 {[%emt 0:06:09]} 15. Rad1 {[%emt 0:02:51]} Nf5 {[%emt 0:00:09]} 16. Nxf5 {[%emt 0:03:54]} Bxf5 {[%emt 0:08:21]} 17. Qxd5 {[%emt 0:01:14]} Qxd5 {[%emt 0:05:50]} 18. Rxd5 {[%emt 0:03:25]} Be6 {[%emt 0:07:03]} 19. Rd2 {[%emt 0:05:39]} Bxb3 {[%emt 0:00:58]} 20. axb3 {[%emt 0:02:26]} Bxe3 {[%emt 0:05:59]} 21. fxe3 Red8 {[%emt 0:00:13]} 22. Rxd8+ {[%emt 0:03:50]} Rxd8 {[%emt 0:00:01]} 23. Bxc6 {[%emt 0:00:26]} bxc6 {[%emt 0:01:33]} 24. Ra1 {[%emt 0:00:00]} Rd7 {[%emt 0:00:07]} 25. Ra6 {[%emt 0:00:17]} Rc7 {[%emt 0:00:31]} 26. b4 {[%emt 0:03:12]} Kf8 {[%emt 0:00:11]} 27. Kf2 {[%emt 0:02:07]} Ke7 {[%emt 0:00:28]} 28. Ke2 {[%emt 0:02:20]} Kd7 {[%emt 0:01:12]} 29. Ra5 {[%emt 0:01:33]} Kc8 30. Rg5 {[%emt 0:00:05]} g6 {[%emt 0:00:41]} 31. Rc5 {[%emt 0:02:14]} a6 {[%emt 0:00:32]} 32. g4 {[%emt 0:00:30]} f6 {[%emt 0:00:30]} 33. h4 {[%emt 0:03:35]} Kb7 {[%emt 0:00:32]} 34. h5 {[%emt 0:06:15]} Re7 {[%emt 0:00:20]} 35. g5 {[%emt 0:01:30]} f5 {[%emt 0:00:13]} 36. Kd3 Rd7+ {[%emt 0:00:05]} 37. Kc2 {[%emt 0:00:51]} Re7 {[%emt 0:00:02]} 38. hxg6 {[%emt 0:00:37]} hxg6 39. Kd3 {[%emt 0:01:32]} Rd7+ {[%emt 0:01:06]} 40. Ke2 {[%emt 0:00:11]} Re7 {[%emt 0:00:30]} 41. Rc4 {[%emt 0:03:44]} Rh7 {[%emt 0:00:23]} 42. e4 Rh5 {[%emt 0:00:01]} 43. exf5 {[%emt 0:01:51]} gxf5 {[%emt 0:00:04]} 44. g6 {[%emt 0:00:39]} Rg5 45. Rf4 Rxg6 {[%emt 0:01:16]} 46. Rxf5 {[%emt 0:00:35]} Rg1 {[%emt 0:00:24]} 47. Kd3 {[%emt 0:02:37]} Kb6 48. c4 {[%emt 0:00:12]} Rg3+ {[%emt 0:01:07]} 49. Kc2 {[%emt 0:01:00]} Rg4 {[%emt 0:01:23]} 50. Kb3 {[%emt 0:00:52]} Rh4 {[%emt 0:00:42]} 51. Rf7 {[%emt 0:02:45]} a5 {[%emt 0:00:10]} 52. c5+ Ka6 53. bxa5 {[%emt 0:00:38]} Kxa5 {[%emt 0:00:45]} 54. Rb7 {[%emt 0:00:22]} Rh5 {[%emt 0:11:58]} 55. Kc4 {[%emt 0:00:25]} Rh4+ {[%emt 0:00:16]} 56. Kc3 Rh3+ {[%emt 0:02:09]} 57. Kd4 {[%emt 0:01:06]} Rh4+ {[%emt 0:00:36]} 58. Ke5 {[%emt 0:00:54]} Rh6 {[%emt 0:00:03]} 59. Rb6 {[%emt 0:03:02]} Rg6 60. Kd4 Rg4+ {[%emt 0:03:13]} 61. Kc3 {[%emt 0:00:32]} Rg3+ {[%emt 0:00:13]} 62. Kc4 {[%emt 0:00:53]} Rg4+ {[%emt 0:03:31]} 63. Kc3 Rg3+ {[%emt 0:00:08]} 64. Kd4 {[%emt 0:01:12]} Rg4+ {[%emt 0:00:07]} 65. Ke5 {[%emt 0:00:21]} Rg6 {[%emt 0:00:00]} 66. Kf5 {[%emt 0:01:04]} Rh6 {[%emt 0:00:02]} 67. Ke5 {[%emt 0:00:32]} Rg6 68. b3 {[%emt 0:00:08]} Rh6 {[%emt 0:00:59]} 69. Kd4 {[%emt 0:00:04]} Rh4+ 70. Kc3 {[%emt 0:00:13]} Rh3+ {[%emt 0:00:47]} 71. Kb2 {[%emt 0:00:33]} Rh5 {[%emt 0:01:23]} 72. b4+ {[%emt 0:00:19]} Ka4 73. Kc3 {[%emt 0:00:02]} Rh3+ {[%emt 0:01:15]} 74. Kd4 {[%emt 0:00:36]} Rh6 {[%emt 0:00:14]} 75. Ke5 Rg6 76. b5 {[%emt 0:02:10]} Rg5+ {[%emt 0:00:40]} 77. Kd6 {[%emt 0:00:16]} cxb5 78. Ra6+ {[%emt 0:00:01]} Kb3 {[%emt 0:00:44]} 79. c6 {[%emt 0:00:40]} b4 {[%emt 0:01:09]} 80. Ra8 {[%emt 0:00:23]} Rg6+ {[%emt 0:00:48]} 81. Kd7 {[%emt 0:00:01]} Rg7+ {[%emt 0:00:24]} 82. Kd6 {[%emt 0:00:47]} Kc2 {[%emt 0:00:08]} 83. Rb8 b3 {[%emt 0:00:07]} 84. c7 {[%emt 0:00:53]} Rxc7 85. Kd5 1/2-1/2

[Event "ESP-ch Seniors 2017"]
[Site "Altea"]
[Date "2017.10.12"]
[Round "6"]
[White "Serra Olives, Tomas"]
[Black "Anguera Maestro, Jaime"]
[Result "1-0"]
[ECO "C72"]
[WhiteElo "2146"]
[BlackElo "2029"]
[Annotator "ChessBase"]
[PlyCount "97"]
[EventDate "2017.??.??"]
[EventType "swiss"]
[EventCountry "ESP"]
[SourceTitle "playchess.com"]
[Source "ChessBase"]
[SourceQuality "1"]
[TimeControl "5400+30"]

1. e4 {[%emt 0:00:00]} e5 {[%emt 0:00:21]} 2. Nf3 {[%emt 0:00:00]} Nc6 {[%emt 0:00:09]} 3. Bb5 {[%emt 0:00:00]} a6 {[%emt 0:00:10]} 4. Ba4 {[%emt 0:00:00]} d6 {[%emt 0:00:09]} 5. O-O {[%emt 0:00:06]} Bd7 {[%emt 0:00:04]} 6. d4 {[%emt 0:00:17]} f6 {[%emt 0:04:39]} 7. c3 {[%emt 0:03:29]} Nge7 {[%emt 0:04:02]} 8. a3 {[%emt 0:04:34]} Ng6 {[%emt 0:02:26]} 9. Re1 {[%emt 0:06:16]} Be7 {[%emt 0:07:30]} 10. Bb3 {[%emt 0:00:55]} Bg4 {[%emt 0:03:05]} 11. Be3 {[%emt 0:07:33]} Qd7 {[%emt 0:13:19]} 12. Nbd2 {[%emt 0:02:36]} Nd8 {[%emt 0:00:43]} 13. h3 {[%emt 0:10:19]} Be6 {[%emt 0:00:24]} 14. d5 {[%emt 0:01:17]} Bf7 {[%emt 0:00:11]} 15. Nf1 {[%emt 0:00:19]} Nf4 {[%emt 0:08:09]} 16. Ng3 {[%emt 0:01:18]} g5 {[%emt 0:00:13]} 17. Nf5 {[%emt 0:01:53]} Bg6 {[%emt 0:03:49]} 18. Bxf4 {[%emt 0:03:31]} Bxf5 {[%emt 0:02:46]} 19. exf5 {[%emt 0:00:26]} gxf4 {[%emt 0:02:06]} 20. Nh4 {[%emt 0:00:00]} Kf8 {[%emt 0:05:15]} 21. Qh5 {[%emt 0:01:44]} Qe8 {[%emt 0:00:34]} 22. Qh6+ {[%emt 0:13:48]} Kg8 {[%emt 0:00:56]} 23. Bd1 {[%emt 0:03:13]} Qf7 {[%emt 0:04:41]} 24. Kh1 {[%emt 0:02:50]} Bf8 {[%emt 0:07:38]} 25. Qh5 {[%emt 0:00:10]} Qxh5 {[%emt 0:00:52]} 26. Bxh5 {[%emt 0:00:06]} Bh6 {[%emt 0:00:25]} 27. Nf3 {[%emt 0:01:36]} Nf7 {[%emt 0:02:52]} 28. Nd2 {[%emt 0:01:12]} Kf8 {[%emt 0:04:21]} 29. Ne4 {[%emt 0:01:03]} Ke7 {[%emt 0:01:04]} 30. Bxf7 {[%emt 0:01:09]} Kxf7 {[%emt 0:00:17]} 31. f3 {[%emt 0:00:42]} Bf8 {[%emt 0:01:17]} 32. Kg1 {[%emt 0:00:31]} Be7 {[%emt 0:01:27]} 33. b4 {[%emt 0:04:17]} b6 {[%emt 0:01:08]} 34. c4 {[%emt 0:00:23]} a5 {[%emt 0:00:23]} 35. Rec1 {[%emt 0:00:39]} Rhd8 {[%emt 0:05:34]} 36. Kf1 {[%emt 0:02:34]} Ra7 {[%emt 0:00:25]} 37. Nc3 {[%emt 0:00:38]} Rc8 {[%emt 0:03:01]} 38. Ke2 {[%emt 0:02:10]} Ke8 {[%emt 0:00:12]} 39. Kd3 {[%emt 0:00:22]} Kd7 {[%emt 0:00:02]} 40. c5 {[%emt 0:12:28]} dxc5 {[%emt 0:01:08]} 41. bxc5 {[%emt 0:00:14]} Bxc5 {[%emt 0:00:06]} 42. Ne4 {[%emt 0:00:16]} Be7 {[%emt 0:00:39]} 43. Rc6 {[%emt 0:00:17]} Rg8 {[%emt 0:03:55]} 44. Rxf6 {[%emt 0:00:38]} Rxg2 {[%emt 0:00:27]} 45. Rf7 {[%emt 0:00:08]} Ke8 {[%emt 0:02:04]} 46. Rxh7 {[%emt 0:00:16]} a4 {[%emt 0:03:48]} 47. f6 {[%emt 0:00:53]} Bf8 {[%emt 0:00:01]} 48. d6 {[%emt 0:01:12]} Ra5 {[%emt 0:00:03]} 49. dxc7 {[%emt 0:03:53]} 1-0

[Event "ESP-ch Seniors 2017"]
[Site "Altea"]
[Date "2017.10.12"]
[Round "6"]
[White "Dominguez Rueda, Juan"]
[Black "Simon Padros, Emili"]
[Result "0-1"]
[ECO "C18"]
[WhiteElo "2135"]
[BlackElo "2153"]
[Annotator "ChessBase"]
[PlyCount "56"]
[EventDate "2017.??.??"]
[EventType "swiss"]
[EventCountry "ESP"]
[SourceTitle "playchess.com"]
[Source "ChessBase"]
[SourceQuality "1"]
[TimeControl "5400+30"]

1. e4 {[%emt 0:00:00]} e6 {[%emt 0:00:11]} 2. d4 {[%emt 0:00:00]} d5 {[%emt 0:00:09]} 3. Nc3 {[%emt 0:00:00]} Bb4 {[%emt 0:00:25]} 4. e5 {[%emt 0:00:00]} c5 {[%emt 0:00:14]} 5. a3 {[%emt 0:00:07]} Bxc3+ {[%emt 0:00:10]} 6. bxc3 {[%emt 0:00:08]} Qc7 {[%emt 0:00:22]} 7. Nf3 {[%emt 0:00:16]} Ne7 {[%emt 0:00:19]} 8. Bd3 {[%emt 0:00:27]} b6 {[%emt 0:00:51]} 9. O-O {[%emt 0:01:22]} Ba6 {[%emt 0:00:41]} 10. Bxa6 {[%emt 0:00:58]} Nxa6 {[%emt 0:02:17]} 11. Qe2 {[%emt 0:02:14]} Nb8 {[%emt 0:00:28]} 12. a4 {[%emt 0:00:37]} Nd7 {[%emt 0:00:20]} 13. Ba3 {[%emt 0:05:30]} O-O {[%emt 0:05:09]} 14. Ng5 {[%emt 0:03:49]} h6 {[%emt 0:05:25]} 15. Nh3 {[%emt 0:00:30]} Rfe8 {[%emt 0:01:24]} 16. g4 {[%emt 0:04:02]} Rac8 {[%emt 0:04:10]} 17. g5 {[%emt 0:05:40]} cxd4 {[%emt 0:12:50]} 18. cxd4 {[%emt 0:09:52]} Qxc2 {[%emt 0:06:49]} 19. Qb5 {[%emt 0:04:18]} Qf5 {[%emt 0:13:37]} 20. Bxe7 {[%emt 0:06:44]} Qg4+ {[%emt 0:06:23]} 21. Kh1 {[%emt 0:00:36]} Qf3+ {[%emt 0:00:38]} 22. Kg1 {[%emt 0:00:09]} Rxe7 {[%emt 0:00:46]} 23. Qb4 {[%emt 0:00:49]} Rc4 {[%emt 0:02:10]} 24. Qxe7 {[%emt 0:10:41]} Rxd4 {[%emt 0:00:41]} 25. Rfe1 {[%emt 0:04:10]} Rg4+ {[%emt 0:01:28]} 26. Kf1 {[%emt 0:00:02]} Qd3+ {[%emt 0:01:17]} 27. Re2 {[%emt 0:00:38]} Qxh3+ {[%emt 0:00:09]} 28. Ke1 {[%emt 0:00:19]} Qc3+ {[%emt 0:00:13]} 0-1

[Event "ESP-ch Seniors 2017"]
[Site "Altea"]
[Date "2017.10.12"]
[Round "6"]
[White "Pastor Pons, Pedro Maria"]
[Black "Brusi Noguera, Ricardo Ll"]
[Result "1/2-1/2"]
[ECO "B04"]
[WhiteElo "2077"]
[BlackElo "2156"]
[Annotator "ChessBase"]
[PlyCount "60"]
[EventDate "2017.??.??"]
[EventType "swiss"]
[EventCountry "ESP"]
[SourceTitle "playchess.com"]
[Source "ChessBase"]
[SourceQuality "1"]
[TimeControl "5400+30"]

1. e4 {[%emt 0:00:00]} Nf6 {[%emt 0:00:06]} 2. e5 {[%emt 0:00:00]} Nd5 {[%emt 0:00:05]} 3. d4 {[%emt 0:00:04]} d6 {[%emt 0:00:11]} 4. Nf3 {[%emt 0:00:07]} Nb6 {[%emt 0:01:17]} 5. Bb5+ {[%emt 0:02:34]} c6 {[%emt 0:01:40]} 6. Bd3 {[%emt 0:00:22]} Bg4 {[%emt 0:01:08]} 7. h3 {[%emt 0:00:11]} Bxf3 {[%emt 0:03:11]} 8. Qxf3 {[%emt 0:00:08]} dxe5 {[%emt 0:02:06]} 9. dxe5 {[%emt 0:00:22]} Qd5 {[%emt 0:13:20]} 10. Qe2 {[%emt 0:03:57]} N8d7 {[%emt 0:01:19]} 11. f4 {[%emt 0:07:27]} Nc5 {[%emt 0:03:44]} 12. Bf5 {[%emt 0:02:18]} e6 {[%emt 0:02:10]} 13. Nc3 {[%emt 0:08:45]} Qd8 {[%emt 0:02:36]} 14. Bg4 {[%emt 0:00:42]} Qh4+ {[%emt 0:00:24]} 15. Qf2 {[%emt 0:00:05]} Qxf2+ {[%emt 0:01:03]} 16. Kxf2 {[%emt 0:00:02]} Be7 {[%emt 0:01:25]} 17. Rd1 {[%emt 0:14:52]} O-O {[%emt 0:02:53]} 18. Be3 {[%emt 0:01:56]} Nc4 {[%emt 0:07:28]} 19. b4 {[%emt 0:04:51]} Na6 {[%emt 0:10:31]} 20. a3 {[%emt 0:00:10]} Rfd8 {[%emt 0:05:19]} 21. Be2 {[%emt 0:01:47]} Nxe3 {[%emt 0:00:43]} 22. Kxe3 {[%emt 0:02:16]} Nc7 {[%emt 0:00:37]} 23. Rxd8+ {[%emt 0:03:50]} Rxd8 {[%emt 0:01:57]} 24. Rd1 {[%emt 0:01:17]} Rxd1 {[%emt 0:01:42]} 25. Nxd1 {[%emt 0:00:12]} a5 {[%emt 0:02:52]} 26. c3 {[%emt 0:00:15]} Kf8 {[%emt 0:00:49]} 27. Ke4 {[%emt 0:01:05]} Ke8 {[%emt 0:01:13]} 28. g4 {[%emt 0:00:17]} Kd7 {[%emt 0:12:15]} 29. Bc4 Nb5 30. f5 Nc7 1/2-1/2

[Event "ESP-ch Seniors 2017"]
[Site "Altea"]
[Date "2017.10.12"]
[Round "6"]
[White "Carbonell Bofill, Carlos Eloy"]
[Black "Garcia Fernandez, Carlos"]
[Result "0-1"]
[ECO "A43"]
[WhiteElo "2050"]
[BlackElo "2264"]
[Annotator "ChessBase"]
[PlyCount "38"]
[EventDate "2017.??.??"]
[EventType "swiss"]
[EventCountry "ESP"]
[SourceTitle "playchess.com"]
[Source "ChessBase"]
[SourceQuality "1"]
[TimeControl "5400+30"]

1. d4 {[%emt 0:10:04]} c5 {[%emt 0:02:15]} 2. e3 {[%emt 0:02:15]} Nf6 {[%emt 0:07:34]} 3. g4 {[%emt 0:04:11]} h6 {[%emt 0:02:38]} 4. c3 {[%emt 0:01:50]} d6 {[%emt 0:02:58]} 5. dxc5 {[%emt 0:00:51]} Bxg4 {[%emt 0:00:33]} 6. f3 {[%emt 0:03:55]} Bh5 {[%emt 0:03:07]} 7. cxd6 {[%emt 0:01:33]} e6 {[%emt 0:00:29]} 8. Na3 {[%emt 0:02:08]} a6 {[%emt 0:02:16]} 9. Qb3 {[%emt 0:08:57]} b5 {[%emt 0:04:35]} 10. c4 {[%emt 0:00:04]} Bxd6 {[%emt 0:00:41]} 11. cxb5 {[%emt 0:00:26]} Nd5 {[%emt 0:01:14]} 12. Nc4 {[%emt 0:11:47]} Bb4+ {[%emt 0:02:07]} 13. Bd2 {[%emt 0:03:43]} Qh4+ {[%emt 0:00:44]} 14. Ke2 {[%emt 0:02:16]} Bxd2 {[%emt 0:05:43]} 15. Nxd2 {[%emt 0:04:49]} axb5 {[%emt 0:02:16]} 16. Qxb5+ {[%emt 0:02:35]} Nd7 {[%emt 0:04:45]} 17. Nh3 {[%emt 0:00:05]} Rb8 {[%emt 0:02:26]} 18. Qc4 {[%emt 0:01:51]} Bxf3+ {[%emt 0:09:40]} 19. Kxf3 {[%emt 0:00:21]} Ne5+ {[%emt 0:00:07]} 0-1

[Event "ESP-ch Seniors 2017"]
[Site "Altea"]
[Date "2017.10.12"]
[Round "6"]
[White "Coll Sola, Joan"]
[Black "Vinal Gutierrez, Pedro"]
[Result "1/2-1/2"]
[ECO "C07"]
[WhiteElo "2045"]
[BlackElo "2041"]
[Annotator "NA"]
[PlyCount "55"]
[EventDate "2017.??.??"]
[EventType "swiss"]
[EventCountry "ESP"]
[SourceTitle "playchess.com"]
[Source "ChessBase"]
[SourceQuality "1"]
[TimeControl "5400+30"]

1. e4 {[%emt 0:00:00]} e6 {[%emt 0:00:01]} 2. d4 {[%emt 0:00:00]} d5 {[%emt 0:00:03]} 3. Nd2 {[%emt 0:00:00]} c5 {[%emt 0:00:02]} 4. exd5 {[%emt 0:00:06]} Qxd5 {[%emt 0:00:13]} 5. Ngf3 {[%emt 0:00:10]} cxd4 {[%emt 0:00:12]} 6. Bc4 {[%emt 0:00:11]} Qd7 {[%emt 0:00:26] C07: French Tarrasch: 3...c5, 4 Ngf3 and 4 exd5 Qxd5} (6... Qd6 7. O-O Nf6 8. Nb3 Nc6 9. Nbxd4 Nxd4 10. Nxd4 a6 11. Re1 Qc7 12. Bf1 Bd6 13. Nf5 Bxh2+ 14. Kh1 Kf8 15. Qd4 exf5 16. Qxf6 h6 17. Qd4 Bd6 18. Bd2 Be6 19. Bc3 Rh7 {0-1 (48) Karjakin,S (2781)-Caruana,F (2808) Paris 2017}) 7. O-O {[%emt 0:00:58]} Nc6 {[%emt 0:03:41]} 8. Nb3 {[%emt 0:00:37]} Nf6 {[%emt 0:00:30]} 9. Nbxd4 {[%emt 0:02:01]} Nxd4 {[%emt 0:00:04]} 10. Nxd4 {[%emt 0:06:39]} a6 {[%emt 0:00:18]} 11. Bf4 {[%emt 0:10:00]} Bc5 {[%emt 0:03:51]} 12. Nb3 {[%emt 0:04:27]} Be7 $146 {[%emt 0:01:09]} ({Predecessor:} 12... Qxd1 13. Raxd1 Bb6 14. Be2 Bd7 15. c4 Rc8 16. Be5 Bc6 17. Nd4 Be4 18. b4 Ke7 19. Rd2 Nd7 20. Bg3 e5 21. c5 {½-½ (57) Annaberdiev,M (2445)-Stankovic,M (2420) Novi Sad 2016}) 13. Re1 {[%emt 0:05:25]} b5 {[%emt 0:01:04]} 14. Be2 {[%emt 0:04:31]} Qxd1 {[%emt 0:02:56]} 15. Raxd1 {[%emt 0:04:39]} Bb7 {[%emt 0:00:19]} 16. c4 {[%emt 0:05:17]} bxc4 {[%emt 0:01:17]} 17. Bxc4 {[%emt 0:00:13]} O-O {[%emt 0:06:12]} 18. Na5 {[%emt 0:05:43]} Be4 {[%emt 0:01:46]} 19. Bg5 {[%emt 0:05:03]} Bc2 {[%emt 0:09:31]} 20. Rc1 {[%emt 0:02:17]} Bb4 {[%emt 0:03:06]} 21. Re2 {[%emt 0:01:52]} Ba4 {[%emt 0:02:51]} 22. Nb3 Rfd8 {[%emt 0:02:08]} 23. h3 {[%emt 0:05:03]} h6 {[%emt 0:05:25]} 24. Be3 {[%emt 0:00:35]} Nd5 {[%emt 0:00:39]} 25. Bc5 {[%emt 0:04:15]} Bxc5 {[%emt 0:06:22]} (25... Bxb3 $5 26. Bxd5 Bxd5 27. Bxb4 Bxa2 $17) 26. Nxc5 {[%emt 0:00:05]} Bb5 {[%emt 0:00:23]} 27. Bxb5 {[%emt 0:03:37]} axb5 $11 {[%emt 0:00:14]} 28. a3 {[%emt 0:00:20]} 1/2-1/2

[Event "ESP-ch Seniors 2017"]
[Site "Altea"]
[Date "2017.10.12"]
[Round "6"]
[White "Fernandez Vicente, Carmelo"]
[Black "Estrada Martinez, Cesar"]
[Result "1-0"]
[ECO "A15"]
[WhiteElo "2044"]
[BlackElo "2045"]
[Annotator "NA"]
[PlyCount "91"]
[EventDate "2017.??.??"]
[EventType "swiss"]
[EventCountry "ESP"]
[SourceTitle "playchess.com"]
[Source "ChessBase"]
[SourceQuality "1"]
[TimeControl "5400+30"]

1. c4 {[%emt 0:00:00]} Nf6 {[%emt 0:00:27]} 2. g3 {[%emt 0:00:18]} e6 {[%emt 0:01:51]} 3. Nf3 {[%emt 0:01:33]} d5 {[%emt 0:00:18]} 4. b3 {[%emt 0:01:14]} Be7 {[%emt 0:01:06]} 5. Bg2 {[%emt 0:01:13]} O-O {[%emt 0:01:33]} 6. O-O {[%emt 0:00:39]} Nbd7 {[%emt 0:05:09]} 7. Bb2 {[%emt 0:01:00]} c6 {[%emt 0:00:21]} 8. d4 {[%emt 0:03:19]} Ne4 {[%emt 0:01:01]} 9. Nfd2 {[%emt 0:03:52]} Nxd2 {[%emt 0:04:11]} 10. Nxd2 {[%emt 0:00:18]} Nf6 {[%emt 0:02:32]} 11. e4 {[%emt 0:01:56] E07: Closed Catalan: Main Line (5 Nf3 0-0 6 0-0 Nbd7)} (11. Qc2 Bd7 12. Bf3 Rc8 13. c5 b6 14. b4 a5 15. a3 axb4 16. axb4 bxc5 17. bxc5 Ra8 18. Bc3 Qc7 19. Ra4 Rxa4 20. Qxa4 {½-½ (54) Cunha,A (1990)-Cohen Farias,P (2261) Belem 2015}) 11... dxe4 {[%emt 0:01:55]} 12. Nxe4 {[%emt 0:00:32]} Nxe4 {[%emt 0:00:28]} 13. Bxe4 {[%emt 0:00:13]} Bf6 {[%emt 0:00:19]} 14. Qd3 $146 {[%emt 0:03:42]} ({Predecessor:} 14. Qe2 g6 15. Rfd1 Qe7 16. Re1 Qc7 17. d5 Bxb2 18. Qxb2 c5 {½-½ (29) Pick,S (2149)-Plasil,J (2088) Czechia 2008}) 14... g6 {[%emt 0:01:03]} 15. Rad1 {[%emt 0:00:49]} c5 {[%emt 0:05:33]} 16. Rd2 {[%emt 0:02:17]} cxd4 {[%emt 0:00:15]} 17. Bxd4 {[%emt 0:00:14]} Bxd4 {[%emt 0:00:29]} 18. Qxd4 {[%emt 0:00:11]} Qxd4 {[%emt 0:00:47]} 19. Rxd4 {[%emt 0:00:12]} e5 {[%emt 0:00:15]} 20. Rd5 {[%emt 0:01:25]} f5 {[%emt 0:04:09]} 21. Bg2 {[%emt 0:01:03]} e4 {[%emt 0:00:13]} 22. f3 {[%emt 0:01:06]} exf3 {[%emt 0:07:17]} 23. Bxf3 {[%emt 0:00:31]} Rb8 {[%emt 0:00:52]} 24. Re1 {[%emt 0:01:30]} b6 {[%emt 0:09:27]} 25. Re7 {[%emt 0:01:22]} Rb7 {[%emt 0:00:43]} 26. Rde5 {[%emt 0:00:22]} Rxe7 {[%emt 0:03:23]} 27. Rxe7 {[%emt 0:00:14]} a5 {[%emt 0:03:03]} 28. Bd5+ {[%emt 0:01:03]} Kh8 {[%emt 0:00:01]} 29. a3 {[%emt 0:00:18]} f4 {[%emt 0:00:31]} 30. gxf4 {[%emt 0:01:30]} Bh3 {[%emt 0:00:43]} 31. Rf7 {[%emt 0:02:18]} Rxf7 {[%emt 0:02:05]} 32. Bxf7 {[%emt 0:01:21]} Kg7 {[%emt 0:00:31]} 33. Bd5 {[%emt 0:00:37]} Kf6 {[%emt 0:00:07]} 34. Kf2 {[%emt 0:00:19]} Bf5 {[%emt 0:03:23]} 35. Ke3 {[%emt 0:01:29]} Bc2 {[%emt 0:00:29]} 36. b4 {[%emt 0:00:33]} Bb3 {[%emt 0:00:37]} 37. Kd4 {[%emt 0:01:58]} axb4 {[%emt 0:00:18]} 38. axb4 {[%emt 0:00:12]} Kf5 {[%emt 0:00:17]} 39. c5 {[%emt 0:01:48]} bxc5+ {[%emt 0:00:17]} 40. Kxc5 {[%emt 0:00:15]} Ba4 {[%emt 0:04:29]} 41. Bc6 {[%emt 0:00:18]} (41. b5 Bxb5 42. Kxb5 Kxf4 $16) 41... Bb3 {[%emt 0:00:01]} 42. b5 {[%emt 0:01:22]} Be6 {[%emt 0:00:05]} 43. Kd6 {[%emt 0:01:13]} Bc4 {[%emt 0:00:23]} 44. b6 {[%emt 0:00:22]} Ba6 {[%emt 0:00:01]} 45. Bb5 {[%emt 0:00:25]} ({Not} 45. b7 Bxb7 46. Bxb7 Kxf4 $16) 45... Bb7 {[%emt 0:01:15]} 46. Kc7 {[%emt 0:00:14]} 1-0